[Event "XII Cracow ICC-A 2024"]
[Site "Krakow"]
[Date "2024.06.29"]
[Round "9.22"]
[White "Kutowski, Marcel"]
[Black "Rudolf, Michal"]
[Result "1/2-1/2"]
[ECO "D19"]
[WhiteElo "2230"]
[BlackElo "2287"]
[Annotator "RC"]
[PlyCount "167"]
[EventDate "2024.06.20"]
[EventType "swiss"]
[EventCountry "POL"]
[SourceTitle "playchess.com"]
[Source "ChessBase"]
[SourceQuality "1"]
[TimeControl "40/5400+30:1800+30"]

1. d4 {[%emt 0:00:04]} d5 {[%emt 0:01:46]} 2. c4 {[%emt 0:00:07]} c6 {[%emt 0:00:20]} 3. Nf3 {[%emt 0:00:07]} Nf6 {[%emt 0:00:15]} 4. Nc3 {[%emt 0:00:12]} dxc4 {[%emt 0:00:19]} 5. a4 {[%emt 0:00:10]} Bf5 {[%emt 0:02:58]} 6. e3 {[%emt 0:00:36]} e6 {[%emt 0:00:28]} 7. Bxc4 {[%emt 0:00:16]} Bb4 {[%emt 0:00:31]} 8. O-O {[%emt 0:00:25]} O-O {[%emt 0:00:04]} 9. Qe2 {[%emt 0:01:27]} Bg6 {[%emt 0:00:37]} 10. Ne5 {[%emt 0:02:04]} Nbd7 {[%emt 0:00:13]} 11. Nxg6 {[%emt 0:00:35]} hxg6 {[%emt 0:00:04]} 12. Rd1 {[%emt 0:01:46]} Qa5 {[%emt 0:00:27]} 13. Qc2 {[%emt 0:05:30]} Rfd8 {[%emt 0:10:54]} 14. Na2 {[%emt 0:15:43]} Be7 {[%emt 0:01:04]} 15. b4 {[%emt 0:02:25]} Qc7 {[%emt 0:01:04]} 16. Bb2 {[%emt 0:03:35]} a5 {[%emt 0:02:11]} 17. Qb3 {[%emt 0:04:53]} Nb6 {[%emt 0:16:20]} 18. Be2 {[%emt 0:01:48]} axb4 {[%emt 0:03:56]} 19. Nxb4 {[%emt 0:01:05]} Nbd5 {[%emt 0:01:10]} 20. Nd3 {[%emt 0:02:25]} Qb6 {[%emt 0:02:26]} 21. Qxb6 {[%emt 0:02:40]} Nxb6 {[%emt 0:00:06]} 22. a5 {[%emt 0:00:59]} Nc4 {[%emt 0:00:08]} 23. Bc3 {[%emt 0:01:05]} Nd5 {[%emt 0:04:59]} 24. Be1 {[%emt 0:01:15]} Bf6 {[%emt 0:03:37]} 25. Rdc1 {[%emt 0:06:33]} Ncxe3 {[%emt 0:03:27]} 26. fxe3 {[%emt 0:00:10]} Nxe3 {[%emt 0:00:07]} 27. Rab1 {[%emt 0:03:20]} Bxd4 {[%emt 0:03:26]} 28. Rxb7 {[%emt 0:03:03]} Nc4+ {[%emt 0:00:41]} 29. Kh1 {[%emt 0:02:42]} Nxa5 {[%emt 0:00:14]} 30. Bxa5 {[%emt 0:02:09]} Rxa5 {[%emt 0:00:33]} 31. Rxc6 {[%emt 0:01:46]} Ra1+ {[%emt 0:00:13]} 32. Rc1 {[%emt 0:00:48]} Rxc1+ {[%emt 0:00:21]} 33. Nxc1 {[%emt 0:00:06]} Ra8 {[%emt 0:00:08]} 34. Rb1 {[%emt 0:04:30]} Ra1 {[%emt 0:00:04]} 35. Rxa1 {[%emt 0:00:15]} Bxa1 {[%emt 0:00:05]} 36. Kg1 {[%emt 0:01:45]} Kf8 {[%emt 0:00:06]} 37. Kf2 {[%emt 0:00:47]} Ke7 {[%emt 0:00:18]} 38. Ke3 {[%emt 0:01:08]} Be5 {[%emt 0:00:37]} 39. h3 {[%emt 0:02:33]} Ba1 {[%emt 0:00:08]} 40. Nb3 {[%emt 0:01:09]} Bb2 {[%emt 0:00:04]} 41. Bc4 {[%emt 0:30:57]} Kd6 {[%emt 0:30:18]} 42. Bb5 {[%emt 0:01:03]} Be5 {[%emt 0:00:19]} 43. Nd2 {[%emt 0:00:50]} Ke7 {[%emt 0:00:22]} 44. Ne4 {[%emt 0:02:10]} Bb2 {[%emt 0:00:13]} 45. Ba4 {[%emt 0:00:47]} Be5 {[%emt 0:00:29]} 46. Nd2 {[%emt 0:01:08]} Bg3 {[%emt 0:00:15]} 47. Nf3 {[%emt 0:00:56]} Kd6 {[%emt 0:00:53]} 48. Kd4 {[%emt 0:01:25]} Bf2+ {[%emt 0:01:03]} 49. Kc4 {[%emt 0:00:11]} Be3 {[%emt 0:00:16]} 50. Bb3 {[%emt 0:00:50]} Bf4 {[%emt 0:00:31]} 51. Kb5 {[%emt 0:00:28]} Be3 {[%emt 0:00:10]} 52. Ba2 {[%emt 0:01:38]} Bf2 {[%emt 0:00:27]} 53. Ng5 {[%emt 0:00:11]} Ke7 {[%emt 0:00:03]} 54. Kc6 {[%emt 0:00:08]} Bg3 {[%emt 0:00:34]} 55. Bb3 {[%emt 0:01:10]} Bf4 {[%emt 0:00:19]} 56. Nf3 {[%emt 0:00:28]} Bg3 {[%emt 0:00:18]} 57. Ba4 {[%emt 0:00:45]} Bf4 {[%emt 0:00:11]} 58. Bb5 {[%emt 0:02:39]} Bg3 {[%emt 0:00:10]} 59. Kb7 {[%emt 0:00:33]} Bf4 {[%emt 0:01:19]} 60. Kc8 {[%emt 0:00:22]} Bg3 {[%emt 0:00:33]} 61. Ba4 {[%emt 0:01:10]} Bf2 {[%emt 0:02:32]} 62. Ne5 {[%emt 0:00:31]} Bh4 {[%emt 0:00:06]} 63. Bd7 {[%emt 0:02:45]} Bg3 {[%emt 0:02:53]} 64. Nc6+ {[%emt 0:00:31]} Kf8 {[%emt 0:00:19]} 65. Kb7 {[%emt 0:04:11]} Bf2 {[%emt 0:00:29]} 66. Na5 {[%emt 0:03:49]} Ke7 {[%emt 0:00:17]} 67. Kc6 {[%emt 0:00:08]} Bg3 {[%emt 0:00:40]} 68. Nc4 {[%emt 0:00:21]} Bf4 {[%emt 0:00:38]} 69. Bc8 {[%emt 0:02:37]} Bg3 {[%emt 0:00:13]} 70. Ba6 {[%emt 0:00:52]} Bf4 {[%emt 0:00:06]} 71. Bb5 {[%emt 0:00:45]} Bg3 {[%emt 0:00:08]} 72. Ba4 {[%emt 0:01:19]} Bf4 {[%emt 0:00:54]} 73. Kb7 {[%emt 0:00:27]} Bg3 {[%emt 0:00:15]} 74. Kc8 {[%emt 0:00:05]} Bf2 {[%emt 0:01:54]} 75. Na5 {[%emt 0:00:23]} Bh4 {[%emt 0:00:14]} 76. Nc6+ {[%emt 0:00:43]} Kd6 {[%emt 0:01:46]} 77. Nd8 {[%emt 0:00:50]} Ke7 {[%emt 0:00:09]} 78. Bb5 {[%emt 0:00:42]} Bg5 {[%emt 0:00:54]} 79. Be2 {[%emt 0:00:38]} Bh4 {[%emt 0:00:17]} 80. Bf3 {[%emt 0:00:10]} Bg5 {[%emt 0:02:03]} 81. g3 {[%emt 0:02:16]} Bf6 {[%emt 0:00:23]} 82. Nc6+ {[%emt 0:02:50]} Kd6 {[%emt 0:00:52]} 83. Nd8 {[%emt 0:00:34]} Ke7 {[%emt 0:00:19]} 84. Nc6+ 1/2-1/2

[Event "XII Cracow ICC-A 2024"]
[Site "Krakow"]
[Date "2024.06.29"]
[Round "9.23"]
[White "Petrovic, Aleksa"]
[Black "Patil Priyanshu"]
[Result "1/2-1/2"]
[ECO "E10"]
[WhiteElo "2303"]
[BlackElo "2165"]
[Annotator "RC"]
[PlyCount "119"]
[EventDate "2024.06.20"]
[EventType "swiss"]
[EventCountry "POL"]
[SourceTitle "playchess.com"]
[Source "ChessBase"]
[SourceQuality "1"]
[TimeControl "40/5400+30:1800+30"]

1. d4 {[%emt 0:00:04]} Nf6 {[%emt 0:08:35]} 2. c4 {[%emt 0:01:03]} e6 {[%emt 0:00:24]} 3. Nf3 {[%emt 0:00:36]} d5 {[%emt 0:00:02]} 4. e3 {[%emt 0:00:25]} Nbd7 {[%emt 0:00:55]} 5. Bd3 {[%emt 0:00:51]} b6 {[%emt 0:00:24]} 6. O-O {[%emt 0:00:31]} Bd6 {[%emt 0:01:40]} 7. cxd5 {[%emt 0:00:33]} exd5 {[%emt 0:00:07]} 8. b3 {[%emt 0:00:04]} Bb7 {[%emt 0:00:24]} 9. Ba3 {[%emt 0:00:45]} c5 {[%emt 0:02:51]} 10. dxc5 {[%emt 0:01:48]} bxc5 {[%emt 0:00:30]} 11. Nc3 {[%emt 0:00:23]} O-O {[%emt 0:02:42]} 12. Nb5 {[%emt 0:05:59]} Be7 {[%emt 0:04:48]} 13. Rc1 {[%emt 0:02:43]} a6 {[%emt 0:03:30]} 14. Nc3 {[%emt 0:00:05]} Bd6 {[%emt 0:02:41]} 15. Na4 {[%emt 0:05:30]} Rc8 {[%emt 0:02:04]} 16. Rc2 {[%emt 0:05:05]} Qe7 {[%emt 0:08:27]} 17. Bf5 {[%emt 0:06:49]} Rc7 {[%emt 0:02:17]} 18. Bb2 {[%emt 0:06:10]} Bc6 {[%emt 0:08:40]} 19. Re1 {[%emt 0:10:28]} Bxa4 {[%emt 0:09:18]} 20. bxa4 {[%emt 0:00:08]} Ne5 {[%emt 0:00:05]} 21. Nxe5 {[%emt 0:02:08]} Bxe5 {[%emt 0:00:03]} 22. Qa1 {[%emt 0:05:19]} Bxb2 {[%emt 0:05:13]} 23. Qxb2 {[%emt 0:00:03]} Rb7 {[%emt 0:00:46]} 24. Qc3 {[%emt 0:02:10]} g6 {[%emt 0:02:28]} 25. Bd3 {[%emt 0:00:50]} c4 {[%emt 0:00:21]} 26. Be2 {[%emt 0:00:35]} Qb4 {[%emt 0:03:01]} 27. f3 {[%emt 0:06:43]} Qxc3 {[%emt 0:03:48]} 28. Rxc3 {[%emt 0:00:53]} Rb4 {[%emt 0:00:09]} 29. e4 {[%emt 0:00:55]} Rxa4 {[%emt 0:00:31]} 30. exd5 {[%emt 0:00:26]} Nxd5 {[%emt 0:00:09]} 31. Rxc4 {[%emt 0:00:03]} Rxa2 {[%emt 0:00:07]} 32. Rd4 {[%emt 0:02:29]} Re8 {[%emt 0:07:55]} 33. Rxd5 {[%emt 0:02:07]} Rexe2 {[%emt 0:00:10]} 34. Rxe2 {[%emt 0:00:05]} Rxe2 {[%emt 0:00:02]} 35. Rd7 {[%emt 0:04:42]} Kg7 {[%emt 0:02:50]} 36. Ra7 {[%emt 0:00:22]} Ra2 {[%emt 0:00:05]} 37. h4 {[%emt 0:00:13]} h5 {[%emt 0:00:28]} 38. Kh2 {[%emt 0:00:26]} a5 {[%emt 0:00:27]} 39. Ra6 {[%emt 0:00:58]} a4 {[%emt 0:00:07]} 40. Kh3 {[%emt 0:01:25]} a3 {[%emt 0:00:07]} 41. Kg3 {[%emt 0:30:28]} Ra1 {[%emt 0:30:05]} 42. Kf4 {[%emt 0:00:25]} f6 {[%emt 0:01:32]} 43. Ra7+ {[%emt 0:01:05]} Kf8 {[%emt 0:00:05]} 44. Ra6 {[%emt 0:00:47]} Ke7 {[%emt 0:00:04]} 45. Ra7+ {[%emt 0:00:08]} Kd8 {[%emt 0:01:03]} 46. Ra6 {[%emt 0:00:42]} a2 {[%emt 0:00:05]} 47. Kg3 {[%emt 0:04:07]} Kc7 {[%emt 0:00:07]} 48. Kh2 {[%emt 0:00:48]} Kb7 {[%emt 0:00:05]} 49. Ra3 {[%emt 0:00:04]} Kb6 {[%emt 0:00:11]} 50. Ra8 {[%emt 0:00:10]} Kc5 {[%emt 0:00:07]} 51. Ra5+ {[%emt 0:00:54]} Kd4 {[%emt 0:00:16]} 52. Ra4+ {[%emt 0:00:33]} Ke3 {[%emt 0:00:11]} 53. Ra3+ {[%emt 0:00:50]} Kf2 {[%emt 0:00:08]} 54. Ra8 {[%emt 0:00:31]} g5 {[%emt 0:05:50]} 55. hxg5 {[%emt 0:00:49]} fxg5 {[%emt 0:00:01]} 56. Ra7 {[%emt 0:00:12]} h4 {[%emt 0:00:08]} 57. Ra8 {[%emt 0:00:08]} Ke3 {[%emt 0:00:49]} 58. Ra3+ {[%emt 0:00:27]} Kd4 {[%emt 0:00:10]} 59. Ra8 {[%emt 0:00:08]} Kc4 {[%emt 0:00:09]} 60. Rc8+ {[%emt 0:00:13]} 1/2-1/2

[Event "XII Cracow ICC-A 2024"]
[Site "Krakow"]
[Date "2024.06.29"]
[Round "9.24"]
[White "Collin, Moritz Valentin"]
[Black "Meessen, Rudolf"]
[Result "1/2-1/2"]
[ECO "E60"]
[WhiteElo "2312"]
[BlackElo "2182"]
[Annotator "RC"]
[PlyCount "80"]
[EventDate "2024.06.20"]
[EventType "swiss"]
[EventCountry "POL"]
[SourceTitle "playchess.com"]
[Source "ChessBase"]
[SourceQuality "1"]
[TimeControl "40/5400+30:1800+30"]

1. d4 Nf6 2. c4 g6 3. h4 Bg7 4. Nc3 O-O 5. e4 d6 6. Be2 c5 7. d5 e6 8. h5 exd5 9. exd5 Re8 10. h6 Bh8 11. Bg5 Qb6 12. b3 Ne4 13. Nxe4 {[%emt 0:02:04]} Rxe4 {[%emt 0:09:11]} 14. Kf1 {[%emt 0:00:12]} Nd7 {[%emt 0:00:00]} 15. Rb1 {[%emt 0:07:17]} a5 {[%emt 0:00:15]} 16. f3 {[%emt 0:00:30]} Re8 {[%emt 0:09:53]} 17. Nh3 {[%emt 0:12:20]} a4 {[%emt 0:13:19]} 18. Nf2 {[%emt 0:13:05]} axb3 {[%emt 0:10:37]} 19. Rxb3 {[%emt 0:00:13]} Qa6 {[%emt 0:00:58]} 20. a3 {[%emt 0:01:12]} f5 {[%emt 0:07:10]} 21. Bc1 {[%emt 0:12:02]} Nf6 {[%emt 0:04:07]} 22. Bb2 {[%emt 0:04:31]} Bd7 {[%emt 0:02:55]} 23. Qa1 {[%emt 0:04:34]} Rxe2 {[%emt 0:00:11]} 24. Kxe2 {[%emt 0:00:30]} Qxc4+ {[%emt 0:03:16]} 25. Rd3 {[%emt 0:04:55]} Qc2+ {[%emt 0:26:38]} 26. Rd2 {[%emt 0:04:01]} Bb5+ {[%emt 0:05:20]} 27. Ke1 {[%emt 0:00:47]} Re8+ {[%emt 0:00:12]} 28. Ne4 {[%emt 0:00:14]} Rxe4+ {[%emt 0:00:22]} 29. fxe4 {[%emt 0:00:08]} Qxe4+ {[%emt 0:00:07]} 30. Kd1 {[%emt 0:01:01]} Ba4+ {[%emt 0:00:54]} 31. Kc1 {[%emt 0:00:14]} Qc4+ {[%emt 0:00:54]} 32. Kb1 {[%emt 0:00:43]} Qe4+ {[%emt 0:00:42]} 33. Kc1 {[%emt 0:00:24]} Qc4+ {[%emt 0:00:14]} 34. Kb1 {[%emt 0:00:09]} Ne4 {[%emt 0:02:03]} 35. Rhd1 {[%emt 0:02:41]} Bxd1 {[%emt 0:06:57]} 36. Rxd1 {[%emt 0:00:46]} Qb3 {[%emt 0:00:30]} 37. Kc1 {[%emt 0:01:31]} Qc4+ {[%emt 0:00:01]} 38. Kb1 {[%emt 0:00:16]} Qb3 {[%emt 0:00:02]} 39. Kc1 {[%emt 0:00:10]} Qc4+ {[%emt 0:01:57]} 40. Kb1 {[%emt 0:00:07]} Qb3 {[%emt 0:00:54]} 1/2-1/2